bitfinex/quotes_ETHUSD_20260117
["timestamp","ask_amount","ask_price","bid_price","bid_amount"]
[1768615815856,0.03803669,3286.3,3285.6,5.16559396]
[1768615816336,7.91847847,3286.4,3285.6,6.06946505]
[1768615816764,10.961397,3286.4,3285.6,6.06946505]
[1768615816968,7.91847847,3286.4,3285.6,6.06946505]
[1768615817155,10.961397,3286.4,3285.6,6.06946505]
[1768615817477,4.87555994,3286.3,3285.6,6.06946505]
[1768615818280,3.04302842,3286.2,3285.6,6.06946505]
[1768615818472,3.04302842,3286.2,3285.7,5.16559396]
[1768615819282,3.04284323,3286.4,3285.7,5.16559396]
[1768615819584,7.91840317,3286.4,3285.7,5.16559396]
[1768615819948,10.9612464,3286.4,3285.7,5.16559396]
[1768615821387,12.10777104,3286.4,3285.7,5.16559396]
[1768615822287,9.06492781,3286.4,3285.8,5.28229866]
[1768615822578,0.03803669,3286.3,3285.8,5.28229866]
[1768615822883,12.10777104,3286.4,3285.8,5.28229866]
[1768615824875,5.25472056,3286.3,3285.8,5.28229866]
[1768615825091,5.21668387,3286.3,3285.8,5.28229866]
[1768615825399,5.25472056,3286.3,3285.8,5.28229866]
[1768615825702,3.04302842,3286.2,3285.8,5.28229866]
[1768615826899,0.001,3286.1,3285.8,5.28229866]
[1768615842715,3.04412102,3286.1,3285.6,5.15537535]
[1768615845922,3.04412102,3286.1,3285.6,3.04357283]
[1768615846222,3.04412102,3286.1,3285.7,5.15537535]
[1768615846922,0.001,3286.1,3285.7,5.15537535]
[1768615850331,0.001,3285.8,3285.7,5.15537535]
[1768615872358,0.001,3286.1,3285.8,5.1119209]
[1768615886195,0.001,3286.1,3285.9,5.17928923]
[1768615886883,4.84816627,3286.5,3285.9,5.17928923]
[1768615887083,0.27421852,3286.4,3285.9,5.17928923]
[1768615887284,7.89095878,3286.5,3285.9,5.17928923]
[1768615887473,0.274221,3286.4,3286.0,5.17928923]
[1768615887805,7.89095878,3286.5,3286.0,5.17928923]
[1768615888006,0.27422215,3286.4,3286.0,5.17928923]
[1768615888184,7.89095878,3286.5,3286.0,5.17928923]
[1768615888385,0.27419934,3286.4,3286.0,5.17928923]
[1768615888585,7.89095878,3286.5,3286.0,5.17928923]
[1768615888780,0.27419883,3286.4,3286.0,5.17928923]
[1768615889009,6.89095878,3286.5,3286.0,5.17928923]
[1768615889189,0.27419874,3286.4,3286.0,5.17928923]
[1768615889387,6.89095878,3286.5,3286.0,5.17928923]
[1768615890306,3.04279251,3286.5,3286.0,6.21706893]
[1768615891620,5.37968297,3286.6,3286.0,6.21706893]
[1768615891792,3.04260666,3286.7,3286.1,5.03824466]
[1768615894392,3.04260666,3286.7,3286.1,8.0813339]
[1768615894711,3.04260666,3286.7,3286.2,5.95015602]
[1768615895274,7.92028963,3286.7,3286.2,5.03824466]
[1768615898315,0.001,3286.4,3286.2,5.03824466]
[1768615901417,0.001,3286.4,3286.2,8.08126267]
[1768615903129,0.001,3286.4,3286.2,5.03824466]
[1768615903329,0.001,3286.4,3286.2,8.08126624]
[1768615903530,0.001,3286.4,3286.3,0.80812662]
[1768615909242,0.001,3286.4,3286.1,5.03824466]
[1768615910642,0.001,3286.4,3286.1,5.04024466]
[1768615912740,5.30462553,3286.4,3286.1,0.002]
[1768615915733,8.32749659,3286.4,3286.1,0.002]
[1768615928533,8.32749659,3286.4,3286.0,0.502]
[1768615929966,11.37036765,3286.4,3286.0,0.502]
[1768615935749,5.30362553,3286.3,3285.7,5.22772566]
[1768615936073,5.30362553,3286.3,3286.0,0.002]
[1768615936371,5.30362553,3286.3,3285.7,5.72972566]
[1768615936970,3.04302842,3286.2,3285.7,5.72972566]
[1768615938595,5.30362553,3286.2,3285.7,5.72972566]
[1768615941795,7.98644801,3286.1,3285.7,5.72972566]
[1768615942305,4.94332699,3286.1,3285.4,0.002]
[1768615942488,6.04626787,3286.1,3285.4,0.002]
[1768615942860,4.94332699,3285.9,3285.4,0.002]
[1768615944060,3.95647826,3285.8,3285.4,0.002]
[1768615945412,3.04339886,3285.8,3285.4,0.002]
[1768615945774,3.04339886,3285.8,3285.4,5.15293071]
[1768615947386,3.04330624,3285.9,3285.4,5.15293071]
[1768615948086,0.001,3285.9,3285.5,5.15093071]
[1768615954504,5.06768947,3285.9,3285.4,5.71352351]
[1768615954672,5.06768947,3285.9,3285.4,0.504]
[1768615955309,8.11008833,3285.8,3285.4,0.504]
[1768615956405,11.15348719,3285.8,3285.4,0.504]
[1768615957806,8.11008833,3285.8,3285.4,0.504]
[1768615960513,5.06668947,3285.7,3285.4,0.504]
[1768615962411,3.04358412,3285.6,3285.4,0.504]
[1768615964215,5.06668947,3285.7,3285.4,0.504]
[1768615964216,8.11022466,3285.7,3285.4,0.504]
[1768615964711,3.04353519,3285.7,3285.4,0.504]
[1768615967122,8.11022466,3285.7,3285.4,0.504]
[1768615970200,8.11022466,3285.7,3285.4,0.26585481]
[1768615970514,8.11022466,3285.7,3285.4,8.91e-06]
[1768615973937,11.15375985,3285.7,3285.4,8.91e-06]
[1768615974292,8.11022466,3285.7,3285.4,8.91e-06]
[1768615974495,11.15375985,3285.7,3285.4,8.91e-06]
[1768615974729,5.32574097,3285.6,3285.1,0.002]
[1768615976340,3.04367676,3285.5,3285.1,0.002]
[1768615976994,5.32574097,3285.4,3285.1,0.002]
[1768615977713,3.04367676,3285.5,3285.1,0.002]
[1768615977911,3.04367676,3285.5,3285.1,5.17391191]
[1768615980054,8.36936603,3285.6,3285.1,5.17391191]
[1768615981755,3.04434828,3285.9,3285.2,5.17191191]
[1768615982927,3.04434828,3285.9,3285.4,0.002]
[1768615983129,3.04434828,3285.9,3285.5,5.17191191]
[1768615995290,0.001,3285.6,3285.5,5.17191191]
[1768615997093,0.001,3285.6,3285.5,8.21558867]
[1768615997294,0.001,3285.6,3285.5,6.03828097]
[1768616005786,0.001,3285.6,3285.5,5.17191191]
[1768616009918,0.001,3285.6,3285.4,5.7628257]
[1768616013709,0.001,3285.6,3285.4,0.504]
[1768616017018,4.81128945,3285.6,3285.4,0.002]
[1768616018419,3.04367676,3285.5,3285.4,0.002]
[1768616018626,7.85396621,3285.5,3285.4,0.002]
[1768616021425,4.81028945,3285.5,3285.4,0.002]
[1768616021720,3.04461547,3285.6,3285.4,0.002]
[1768616021925,7.85490492,3285.6,3285.4,0.002]
[1768616024845,4.81128945,3285.6,3285.4,0.002]
[1768616025013,0.001,3285.6,3285.4,0.002]
[1768616026144,0.001,3285.6,3285.4,5.06433679]
[1768616030549,0.001,3285.6,3285.4,0.002]
[1768616033166,5.08695058,3285.6,3285.4,0.002]
[1768616035872,8.13055105,3285.6,3285.4,0.002]
[1768616041046,5.08695058,3285.6,3285.4,0.002]
[1768616042177,0.001,3285.6,3285.4,0.002]
[1768616045674,5.08695058,3285.6,3285.4,0.002]
[1768616046649,0.28493619,3285.5,3285.4,0.002]
[1768616046876,4.8020144,3285.6,3285.4,0.002]
[1768616054789,7.84561075,3285.6,3285.4,0.002]
[1768616054995,5.08595058,3285.5,3285.4,0.002]
[1768616060793,4.80130765,3285.5,3285.4,0.002]
[1768616074702,4.8584386,3285.7,3285.4,0.002]
[1768616077233,3.04340345,3285.8,3285.4,0.002]
[1768616077438,0.284475,3285.7,3285.4,0.002]
[1768616077605,7.90184205,3285.8,3285.4,0.002]
[1768616077931,0.28447517,3285.7,3285.4,0.002]
[1768616078133,7.90184205,3285.8,3285.4,0.002]
[1768616078432,0.28447517,3285.7,3285.4,0.002]
[1768616078634,7.90184205,3285.8,3285.4,0.002]
[1768616078836,0.28447498,3285.7,3285.4,0.002]
[1768616079018,7.90184205,3285.8,3285.4,0.002]
[1768616079216,0.28447452,3285.7,3285.4,0.002]
[1768616079417,4.8584386,3285.7,3285.4,0.002]
[1768616080510,3.04340345,3285.8,3285.4,5.33743838]
[1768616080928,8.40578996,3285.9,3285.4,5.33743838]
[1768616081129,0.2844773,3285.8,3285.4,5.33743838]
[1768616081430,8.40578996,3285.9,3285.4,5.33743838]
[1768616081606,0.28444183,3285.8,3285.4,5.33743838]
[1768616081930,8.40578996,3285.9,3285.4,5.33743838]
[1768616082105,3.32784793,3285.8,3285.4,5.33743838]
[1768616082306,3.04340598,3285.8,3285.4,5.33743838]
[1768616085043,7.90184458,3285.8,3285.4,0.002]
[1768616085245,3.04340598,3285.8,3285.4,0.002]
[1768616085406,4.8584386,3285.7,3285.4,0.002]
[1768616087045,0.001,3285.9,3285.4,5.33743838]
[1768616087245,0.001,3285.9,3285.4,6.225774]
[1768616087541,0.001,3285.9,3285.4,6.228174]
[1768616087735,4.8594386,3285.9,3285.4,6.228174]
[1768616089529,0.001,3285.6,3285.4,6.228174]
[1768616118709,0.001,3285.6,3285.4,0.89273562]
[1768616118915,0.001,3285.6,3285.4,0.0044]
[1768616119512,0.001,3285.6,3284.9,3.04420834]
[1768616119513,5.17908844,3285.5,3284.8,1e-08]
[1768616119690,5.46324735,3285.4,3284.8,1e-08]
[1768616119890,4.94918335,3285.5,3284.8,1e-08]
[1768616119891,0.28415609,3285.3,3284.8,1e-08]
[1768616120108,5.46324453,3285.2,3284.8,1e-08]
[1768616120421,5.17908844,3285.0,3284.8,1e-08]
[1768616120784,8.22322928,3285.0,3284.8,1e-08]
[1768616120978,3.59038331,3285.1,3284.8,1e-08]
[1768616121735,3.04386205,3285.3,3284.8,5.18376805]
[1768616125019,0.001,3285.0,3284.8,5.18376805]
[1768616126344,0.001,3285.0,3284.8,8.22808916]
[1768616126642,0.001,3285.0,3284.9,5.18376804]
[1768616127337,0.001,3285.0,3284.9,6.00677696]
[1768616133474,0.001,3285.0,3284.9,9.05100966]
[1768616133772,5.69034635,3285.4,3285.0,4.81756721]
[1768616134178,0.351,3285.4,3285.0,4.81756721]
[1768616134479,8.38307538,3285.5,3285.0,4.81756721]
[1768616135170,5.33934635,3285.4,3285.0,4.81756721]
[1768616135969,8.38313739,3285.4,3285.0,4.81756721]
[1768616136170,5.33934635,3285.4,3285.0,4.81756721]
[1768616138794,5.33934635,3285.4,3285.0,7.86169725]
[1768616138961,8.38395573,3285.6,3285.0,4.81756721]
[1768616139162,8.38395573,3285.6,3285.1,4.81756721]
[1768616139363,5.33934635,3285.5,3284.9,7.86175645]
[1768616139562,5.33934635,3285.5,3284.9,8.95256324]
[1768616141696,5.33934635,3285.5,3285.0,3.0441056]
[1768616141996,5.33934635,3285.4,3284.9,8.95256221]
[1768616149527,5.33934635,3285.4,3285.2,0.002]
[1768616157532,0.28416093,3285.3,3285.2,0.002]
[1768616157933,0.28416093,3285.3,3285.0,4.98302124]
[1768616158132,0.28416093,3285.2,3285.0,4.98302124]
[1768616158333,5.33934635,3285.4,3285.0,4.98302124]
[1768616158652,0.28408244,3285.3,3285.0,4.98302124]
[1768616158852,5.33934635,3285.4,3285.0,4.98302124]
[1768616159029,0.28408254,3285.3,3285.0,4.98302124]
[1768616159351,5.33934635,3285.4,3285.0,4.98302124]
[1768616159649,0.28404138,3285.3,3285.0,4.98302124]
[1768616159949,5.33934635,3285.4,3285.0,4.98302124]
[1768616160144,0.28402881,3285.3,3285.0,4.98302124]
[1768616160319,5.33934635,3285.4,3285.0,4.98302124]
[1768616160750,5.33934635,3285.4,3285.0,8.02714584]
[1768616161552,5.33934635,3285.4,3285.0,4.98302124]
[1768616162222,5.33934635,3285.4,3285.3,0.002]
[1768616162551,5.33934635,3285.4,3285.0,4.98502124]
[1768616167760,5.27619138,3285.3,3285.0,0.002]
[1768616169959,5.27619138,3285.2,3285.0,0.002]
[1768616171647,8.32000098,3285.4,3285.0,0.002]
[1768616173693,5.27619138,3285.4,3285.0,0.002]
[1768616174375,8.31996945,3285.4,3285.0,0.002]
[1768616174554,5.27619138,3285.4,3285.0,0.002]
[1768616174943,5.27619138,3285.4,3285.3,0.002]
[1768616175187,6.10828254,3285.4,3285.3,0.002]
[1768616182378,9.15205194,3285.4,3285.3,0.002]
[1768616182582,9.15205194,3285.4,3285.0,0.002]
[1768616182780,5.27619138,3285.4,3285.0,0.002]
[1768616187480,5.27619138,3285.4,3285.3,0.002]
[1768616193669,4.96310498,3285.6,3285.3,0.002]
[1768616196193,3.04367676,3285.5,3285.3,0.002]
[1768616197920,0.001,3285.6,3285.3,5.29229037]
[1768616200612,0.001,3285.6,3285.3,8.33613483]
[1768616201008,0.001,3285.6,3285.3,5.29229037]
[1768616201619,0.001,3285.6,3285.3,8.33614178]
[1768616202223,0.001,3285.6,3285.3,5.29229037]
[1768616209139,0.001,3285.6,3285.4,5.29029037]
[1768616210007,0.001,3285.6,3285.3,8.33614634]
[1768616211936,0.001,3285.6,3285.4,5.22539813]
[1768616215842,0.001,3285.6,3285.5,5.22539813]
[1768616219864,0.001,3285.6,3285.5,8.26907489]
[1768616220045,0.001,3285.6,3285.5,5.22539813]
[1768616220660,0.001,3285.9,3285.4,5.22539813]
[1768616220840,3.04312102,3286.1,3285.6,5.22539813]
[1768616221241,8.0305958,3286.1,3285.6,5.22539813]
[1768616224387,8.03044834,3286.3,3285.7,5.22539813]
[1768616224593,0.28435934,3286.2,3285.7,5.22539813]
[1768616224904,4.98747478,3286.2,3285.8,0.82689635]
[1768616230996,8.03051483,3286.2,3285.8,0.82689635]
[1768616231876,3.0429436,3286.3,3285.9,5.22539813]
[1768616232304,4.98747478,3286.3,3285.9,5.22539813]
[1768616232476,4.98747478,3286.3,3285.8,0.82689635]
[1768616234829,8.03043318,3286.3,3285.8,0.82689635]
[1768616235434,0.001,3285.9,3285.8,0.82689635]
[1768616236237,4.83547478,3286.5,3285.9,5.22539813]
[1768616236404,7.87825486,3286.5,3285.9,5.22539813]
[1768616236602,3.04278008,3286.5,3285.9,5.22539813]
[1768616236812,4.98747478,3286.4,3285.9,5.22539813]
[1768616237027,4.98747478,3286.4,3285.9,9.3999163]
[1768616237217,8.03032633,3286.4,3285.9,9.3999163]
[1768616242469,5.24421856,3286.3,3285.9,6.35662456]
[1768616247456,5.24421856,3286.3,3286.2,0.002]
[1768616250284,8.28715438,3286.3,3286.2,0.002]
[1768616253588,5.24421856,3286.3,3286.2,0.002]
[1768616254622,8.28715438,3286.3,3286.2,0.002]
[1768616255858,8.08433708,3286.5,3286.2,0.002]
[1768616264316,3.32745663,3286.4,3286.2,0.002]
[1768616264526,3.04287,3286.4,3286.2,0.002]
[1768616265631,3.04287,3286.4,3286.1,0.002]
[1768616265834,8.08435949,3286.5,3286.1,5.30409523]
[1768616266025,0.28462595,3286.4,3286.1,5.30409523]
[1768616266347,8.08435949,3286.5,3286.1,5.30409523]
[1768616266634,0.28472661,3286.4,3286.1,5.30409523]
[1768616266838,8.08435949,3286.5,3286.1,5.30409523]
[1768616267038,0.28472685,3286.4,3286.1,5.30409523]
[1768616267234,8.08435949,3286.5,3286.1,5.30409523]
[1768616267440,0.28472575,3286.4,3286.1,5.30409523]
[1768616267738,8.08435949,3286.5,3286.1,5.30409523]
[1768616267937,0.28472669,3286.4,3286.1,5.30409523]
[1768616268134,3.04278003,3286.5,3286.1,5.30409523]
[1768616268441,0.28472492,3286.4,3286.1,5.30409523]
[1768616268640,3.04278003,3286.5,3286.1,5.30409523]
[1768616268835,0.28472495,3286.4,3286.1,5.30409523]
[1768616269002,3.04278003,3286.5,3286.1,5.30409523]
[1768616269202,0.28472503,3286.4,3286.1,5.30409523]
[1768616269400,3.04278003,3286.5,3286.1,5.30409523]
[1768616269627,0.28472495,3286.4,3286.1,5.30409523]
[1768616269814,3.04278003,3286.5,3286.1,5.30409523]
[1768616270016,3.32758003,3286.4,3286.1,5.30409523]
[1768616270214,3.04285419,3286.4,3286.1,5.30409523]
[1768616272109,3.04275064,3286.5,3286.1,5.30409523]
[1768616272440,0.28472571,3286.4,3286.1,5.30409523]
[1768616272642,3.04275064,3286.5,3286.1,5.30409523]
[1768616272809,0.28472484,3286.4,3286.1,5.30409523]
[1768616273008,3.04275064,3286.5,3286.1,5.30409523]
[1768616273203,0.28472487,3286.4,3286.1,5.30409523]
[1768616273403,3.04275064,3286.5,3286.1,5.30409523]
[1768616273604,0.28472405,3286.4,3286.1,5.30409523]
[1768616273831,3.04275064,3286.5,3286.1,5.30409523]
[1768616274132,0.28472451,3286.4,3286.1,5.30409523]
[1768616274431,3.04275064,3286.5,3286.1,5.30409523]
[1768616274732,0.28472371,3286.4,3286.1,5.30409523]
[1768616275032,3.04275064,3286.5,3286.1,5.30409523]
[1768616275232,3.32758523,3286.4,3286.1,5.30409523]
[1768616275524,3.04286175,3286.4,3286.1,5.30409523]
[1768616276331,3.04286175,3286.4,3286.1,0.002]
[1768616277549,3.04286175,3286.4,3286.1,5.10662138]
[1768616280787,3.04268005,3286.6,3286.1,5.10662138]
[1768616280987,0.28471788,3286.5,3286.1,5.10662138]
[1768616281283,0.28471788,3286.4,3286.1,5.10662138]
[1768616281433,8.32462202,3286.6,3286.1,5.10662138]
[1768616281633,0.28470945,3286.5,3286.1,5.10662138]
[1768616281865,0.28470945,3286.4,3286.1,5.10662138]
[1768616282169,8.32462202,3286.6,3286.1,5.10662138]
[1768616282464,0.28465211,3286.5,3286.1,5.10662138]
[1768616282665,0.28465211,3286.4,3286.1,5.10662138]
[1768616282837,8.32462202,3286.6,3286.1,5.10662138]
[1768616283037,0.28465252,3286.5,3286.1,5.10662138]
[1768616283272,0.28465252,3286.4,3286.1,5.10662138]
[1768616283479,8.32462202,3286.6,3286.1,5.10662138]
[1768616283774,0.28464919,3286.5,3286.1,5.10662138]
[1768616283980,0.28464919,3286.4,3286.1,5.10662138]
[1768616284180,0.001,3286.2,3286.1,5.10662138]
[1768616289951,3.04268005,3286.6,3286.1,0.002]
[1768616290157,3.04432884,3286.8,3286.2,5.10462138]
[1768616290471,0.0018122,3286.8,3286.2,8.14763919]
[1768616290670,0.0018122,3286.8,3286.3,5.10462138]
[1768616296163,0.001,3286.5,3286.3,5.10462138]
[1768616296365,0.001,3286.5,3286.4,0.51046214]
[1768616297188,0.001,3286.5,3286.4,5.61508352]
[1768616313008,0.001,3286.5,3286.4,8.65792675]
[1768616313207,0.0018122,3286.8,3286.5,4.99039141]
[1768616338231,0.91449992,3286.8,3286.5,4.99039141]
[1768616341733,3.95698161,3286.8,3286.5,4.99039141]
[1768616342052,9.1167218,3286.8,3286.3,4.8138519]
[1768616342203,5.15974019,3286.7,3286.2,0.502]
[1768616342599,6.07251122,3286.7,3286.1,0.002]
[1768616342805,6.07251122,3286.7,3286.1,0.504]
[1768616343019,5.15974019,3286.7,3286.1,5.3178519]
[1768616343543,0.91277103,3286.6,3286.1,8.3609673]
[1768616344430,6.07251122,3286.6,3286.1,8.3609673]
[1768616344633,6.07251122,3286.6,3286.1,9.50159181]
[1768616345844,6.07251122,3286.6,3286.4,0.002]
[1768616346136,0.001,3286.5,3286.4,0.002]
[1768616364983,5.32897379,3286.5,3286.1,0.504]
[1768616365149,5.32797379,3286.4,3285.9,0.002]
[1768616365340,5.32797379,3286.2,3285.9,0.002]
[1768616365660,5.32797379,3286.1,3285.5,5.10190434]
[1768616365859,5.32797379,3286.1,3285.4,5.60390434]
[1768616366266,6.24093649,3286.1,3285.4,5.60390434]
[1768616366777,5.32797379,3286.1,3285.4,5.60390434]
[1768616367156,8.37118742,3286.0,3285.4,5.60390434]
[1768616370364,8.37118742,3286.0,3285.7,0.002]
[1768616370565,9.51261949,3286.0,3285.7,0.002]
[1768616372091,5.29759851,3285.9,3285.7,0.002]
[1768616372998,9.48224421,3286.0,3285.7,0.002]
[1768616380479,5.29759851,3285.9,3285.7,0.002]
[1768616380915,3.04321363,3286.0,3285.7,0.002]
[1768616381710,6.08642726,3286.0,3285.7,0.002]
[1768616382098,5.33563983,3285.9,3285.4,0.504]
[1768616382408,7.22482984,3286.0,3285.5,4.87274531]
[1768616383508,12.52242835,3286.0,3285.5,4.87274531]
[1768616384031,5.29759851,3285.9,3285.4,0.504]
[1768616384180,5.29759851,3285.9,3285.4,5.37674531]
[1768616384380,7.22482984,3286.0,3285.4,5.37674531]
[1768616384629,0.03804132,3285.9,3285.4,5.37674531]
[1768616385015,3.04339886,3285.8,3285.4,5.37674531]
[1768616390324,3.04339886,3285.8,3285.4,0.504]
[1768616390498,8.34099737,3285.8,3285.4,0.504]
[1768616390924,3.04339886,3285.8,3285.4,5.37674531]
[1768616393135,4.81857349,3285.7,3285.4,0.002]
[1768616393313,5.16095702,3285.7,3285.0,0.002]
[1768616394917,4.81857349,3285.5,3285.4,0.002]
[1768616395118,4.81857349,3285.5,3285.0,0.002]
[1768616396934,3.0437291,3285.5,3285.0,0.002]
[1768616397235,4.81857349,3285.4,3285.0,0.002]
[1768616400156,7.86234607,3285.4,3285.0,0.002]
[1768616400849,4.81857349,3285.3,3285.0,0.002]
[1768616402345,4.81857349,3285.4,3285.0,0.002]
[1768616402523,3.347855,3285.7,3285.0,4.85576529]
[1768616402721,3.04343667,3285.8,3285.0,4.85576529]
[1768616402921,3.04343667,3285.8,3285.2,4.85376529]
[1768616403153,3.04321363,3286.0,3285.2,4.85376529]
[1768616403658,6.08642726,3286.0,3285.2,4.85376529]
[1768616404025,10.90500075,3286.0,3285.2,4.85376529]
[1768616405437,7.86178712,3286.0,3285.4,4.85376529]
[1768616405648,7.86183507,3286.0,3285.4,4.85376529]
[1768616405844,3.04326158,3286.0,3285.4,4.85376529]
[1768616406759,3.04326158,3286.0,3285.6,4.85376529]
[1768616407064,3.04314171,3286.1,3285.6,4.85376529]
[1768616407270,8.21163003,3286.2,3285.6,4.85376529]
[1768616408358,8.21163003,3286.2,3285.7,4.85376529]
[1768616409054,7.70863003,3286.2,3285.7,4.85376529]
[1768616409227,3.04378834,3286.5,3285.7,5.64370017]
[1768616409423,3.04378834,3286.5,3285.8,3.04339886]
[1768616409630,3.04378834,3286.5,3285.9,4.85376529]
[1768616409840,6.08657668,3286.5,3285.9,4.85376529]
[1768616410127,6.08657668,3286.5,3285.7,0.502]
[1768616410128,5.14058213,3286.4,3285.7,0.502]
[1768616410364,5.35960903,3286.4,3285.5,0.002]
[1768616412678,4.81857349,3286.2,3285.5,0.002]
[1768616412975,4.85661134,3286.2,3285.5,0.002]
[1768616414469,3.04312102,3286.1,3285.5,0.002]
[1768616414648,4.81857349,3286.0,3285.5,0.002]
[1768616418572,7.86179979,3286.0,3285.5,0.002]
[1768616419437,7.86179979,3286.0,3285.8,0.002]
[1768616419767,4.81857349,3286.0,3285.8,0.002]
[1768616422769,3.5459729,3286.3,3285.8,5.05552096]
[1768616422968,3.0429729,3286.3,3285.8,5.05552096]
[1768616423172,3.04288209,3286.4,3285.8,5.05552096]
[1768616423342,3.04379335,3286.5,3285.9,5.05352096]
[1768616423947,5.22892026,3286.4,3285.9,5.05352096]
[1768616425466,3.04293582,3286.3,3285.9,5.05352096]
[1768616426900,5.22892026,3286.2,3285.8,0.504]
[1768616428802,3.04286955,3286.4,3285.8,5.55752096]
[1768616428973,3.08097251,3286.3,3285.8,5.55752096]
[1768616429176,8.30989277,3286.3,3285.8,5.55752096]
[1768616429377,8.27185608,3286.3,3285.8,5.55752096]
[1768616431482,8.27185608,3286.3,3286.1,0.002]
[1768616431671,9.40342864,3286.3,3285.8,5.55752096]
[1768616431872,8.27185608,3286.3,3285.8,5.55752096]
[1768616433106,3.04293582,3286.3,3285.8,5.55752096]
[1768616434300,3.04293582,3286.3,3285.8,3.54738458]
[1768616434504,3.04293582,3286.3,3285.9,5.16451493]
[1768616435175,3.04292613,3286.4,3285.9,5.16451493]
[1768616437706,3.0437559,3286.5,3285.9,5.16451493]
[1768616437878,0.28425537,3286.4,3285.9,5.16451493]
[1768616438077,6.0865118,3286.5,3285.9,5.16451493]
[1768616438280,0.28425527,3286.4,3285.9,5.16451493]
[1768616438497,11.09548515,3286.5,3285.9,5.16451493]
[1768616438687,0.28428455,3286.4,3285.9,5.16451493]
[1768616438893,11.09548515,3286.5,3285.9,5.16451493]
[1768616439096,0.28428434,3286.4,3285.9,5.16451493]
[1768616439406,11.09548515,3286.5,3285.9,5.16451493]
[1768616439606,3.04293582,3286.3,3285.9,5.16451493]
[1768616440304,3.04286759,3286.4,3285.9,5.16451493]
[1768616443816,0.001,3286.1,3285.9,5.16451493]
[1768616445407,0.001,3286.1,3285.9,6.03570597]
[1768616448926,0.001,3286.1,3286.0,5.16451493]
[1768616458202,0.001,3286.1,3285.9,0.87119104]
[1768616458203,0.001,3286.1,3285.9,5.79973688]
[1768616458444,0.001,3286.1,3285.9,0.87119104]
[1768616458613,0.001,3286.1,3285.8,0.504]
[1768616459830,0.001,3286.1,3285.8,5.43254584]
[1768616479183,4.94915619,3286.0,3285.6,0.502]
[1768616479386,4.94915619,3286.0,3285.5,0.002]
[1768616479533,0.49501562,3285.9,3285.5,0.002]
[1768616479843,4.94915619,3285.8,3285.5,0.002]
[1768616481754,5.31355353,3285.7,3285.5,0.002]
[1768616485168,3.0435043,3285.7,3285.5,0.002]
[1768616485486,5.31355353,3285.6,3285.5,0.002]
[1768616486835,5.31355353,3285.5,3285.1,0.002]
[1768616487040,5.84490888,3285.5,3285.1,0.002]
[1768616487366,5.31355353,3285.5,3285.1,0.002]
[1768616488678,5.31355353,3285.4,3285.1,0.002]
[1768616491479,8.18466541,3285.6,3285.1,0.002]
[1768616491971,8.18466541,3285.6,3285.4,0.002]
[1768616492278,9.30747288,3285.6,3285.4,0.002]
[1768616493267,9.30747288,3285.6,3285.1,8.27692539]
[1768616493268,6.76681746,3285.6,3285.1,8.27692539]
[1768616493456,3.04350018,3285.7,3285.2,5.23093674]
[1768616493663,8.18451017,3285.7,3285.2,5.23093674]
[1768616494069,11.22808438,3285.7,3285.2,5.23093674]
[1768616494876,5.17905479,3285.6,3285.1,0.002]
[1768616495475,8.18468675,3285.5,3285.1,0.002]
[1768616496744,3.04361854,3285.6,3285.1,5.23293674]
[1768616497370,8.18454107,3285.7,3285.1,5.75663041]
[1768616498478,8.18454107,3285.7,3285.1,8.80066123]
[1768616498641,8.18454107,3285.7,3285.1,3.56972449]
[1768616498842,8.18454107,3285.7,3285.2,5.23093674]
[1768616499789,5.14100999,3285.6,3285.2,5.23093674]
[1768616499970,0.503,3285.8,3285.4,5.23093674]
[1768616500269,3.0433623,3285.9,3285.4,5.23093674]
[1768616500450,8.18437229,3285.9,3285.4,5.23093674]
[1768616500647,3.0433623,3285.9,3285.4,5.23093674]
[1768616500852,5.17905247,3285.8,3285.4,5.23093674]
[1768616501176,5.14100999,3285.8,3285.4,5.23093674]
[1768616502374,3.28573713,3285.4,3284.6,1e-08]
[1768616502672,3.28573713,3285.2,3284.6,1e-08]
[1768616503661,3.28573713,3285.2,3284.6,5.23093675]
[1768616504840,6.08809472,3285.1,3284.6,5.23093675]
[1768616505040,3.28588632,3285.0,3284.6,5.23093675]
[1768616507579,3.0442327,3284.9,3284.6,5.23093675]
[1768616510083,6.0884654,3284.9,3284.5,0.002]
[1768616510264,11.22947539,3284.9,3284.5,0.002]
[1768616510750,5.14100999,3284.8,3284.5,0.002]
[1768616511697,8.1853927,3284.8,3284.5,0.002]
[1768616514188,5.30388133,3284.7,3284.5,0.002]
[1768616514686,6.493431,3284.7,3284.5,0.002]
[1768616515386,5.30388133,3284.7,3284.5,0.002]
[1768616516506,8.34830051,3284.7,3284.5,0.002]
[1768616516805,3.04434245,3284.8,3284.5,0.002]
[1768616517401,8.34822378,3284.8,3284.5,0.002]
[1768616521205,5.30388133,3284.7,3284.5,0.002]
[1768616524419,8.34835746,3284.7,3284.5,0.002]
[1768616524934,5.30388133,3284.6,3283.7,0.002]
[1768616525078,5.80688133,3284.5,3283.7,0.002]
[1768616525277,5.30388133,3284.2,3283.7,0.002]
[1768616525583,5.30388133,3284.0,3283.7,0.002]
[1768616526608,8.34904104,3283.9,3283.7,0.002]
[1768616527193,9.53875585,3283.9,3283.7,0.002]
[1768616527394,5.30388133,3283.8,3283.7,0.002]
[1768616528416,5.30388133,3283.8,3283.2,5.16179882]
[1768616528590,5.30388133,3283.6,3283.0,8.20940212]
[1768616528910,3.54834518,3283.7,3283.2,5.16179882]
[1768616529279,0.503,3283.7,3283.3,5.16179882]
[1768616529699,0.503,3283.7,3283.6,0.002]
[1768616531796,5.30388133,3283.9,3283.6,0.002]
[1768616532003,0.503,3283.8,3283.6,0.002]
[1768616533028,0.503,3283.9,3283.6,0.002]
[1768616535396,0.503,3284.0,3283.6,5.16379882]
[1768616535790,0.503,3284.2,3283.6,5.16379882]
[1768616537339,3.04497426,3284.1,3283.6,5.16379882]
[1768616540421,3.04497426,3284.1,3283.6,8.20923547]
[1768616540629,8.85180546,3284.2,3283.7,5.16179882]
[1768616541942,5.80688133,3284.2,3283.7,8.20710353]
[1768616542121,0.503,3284.4,3283.8,5.2667688]
[1768616542543,3.54769523,3284.5,3283.8,5.2667688]
[1768616543235,6.59239046,3284.5,3283.8,5.2667688]
[1768616543752,3.54769523,3284.5,3283.8,5.2667688]